[Event "Titled Tuesday Blitz August 22 Early 2023"]
[White "Kozin, Yuri"]
[Black "Rom, Jasper"]
[WhiteFideId "4129920"]
[BlackFideId "2023733"]
[WhiteElo "2573"]
[BlackElo "2403"]
[Result "0-1"]
[Round "4"]
[TimeControl "180+1"]
[Date "2023.08.22"]
[WhiteClock "0:00:00"]
[BlackClock "0:00:09"]
[Board "153"]

1. e4 {[%clk 0:03:00]}  e6 {[%clk 0:02:59]} 2. d4 {[%clk 0:03:00]}  d5 {[%clk 0:02:59]} 3. Nd2 {[%clk 0:03:00]}  Be7 {[%clk 0:02:57]} 4. Bd3 {[%clk 0:02:58]}  c5 {[%clk 0:02:56]} 5. dxc5 {[%clk 0:02:57]}  a5 {[%clk 0:02:52]} 6. Ngf3 {[%clk 0:02:55]}  Nf6 {[%clk 0:02:51]} 7. Qe2 {[%clk 0:02:52]}  O-O {[%clk 0:02:48]} 8. e5 {[%clk 0:02:40]}  Nfd7 {[%clk 0:02:47]} 9. h4 {[%clk 0:02:38]}  h6 {[%clk 0:02:41]} 10. Nb3 {[%clk 0:02:20]}  Na6 {[%clk 0:02:27]} 11. c6 {[%clk 0:01:55]}  bxc6 {[%clk 0:02:24]} 12. Bd2 {[%clk 0:01:50]}  Nb4 {[%clk 0:02:12]} 13. Nbd4 {[%clk 0:01:43]}  Nxd3+ {[%clk 0:02:00]} 14. cxd3 {[%clk 0:01:42]}  Qb6 {[%clk 0:02:00]} 15. O-O {[%clk 0:01:28]}  Ba6 {[%clk 0:01:55]} 16. Rab1 {[%clk 0:01:20]}  Nc5 {[%clk 0:01:51]} 17. Ne1 {[%clk 0:01:08]}  Nxd3 {[%clk 0:01:44]} 18. Qg4 {[%clk 0:00:33]}  Nxe5 {[%clk 0:01:33]} 19. Qf4 {[%clk 0:00:33]}  Ng6 {[%clk 0:01:29]} 20. Qg4 {[%clk 0:00:24]}  h5 {[%clk 0:01:24]} 21. Qxh5 {[%clk 0:00:20]}  Qxd4 {[%clk 0:01:22]} 22. Nf3 {[%clk 0:00:20]}  Qd3 {[%clk 0:00:35]} 23. Rfd1 {[%clk 0:00:16]}  Qf5 {[%clk 0:00:32]} 24. Bg5 {[%clk 0:00:12]}  Be2 {[%clk 0:00:17]} 25. Re1 {[%clk 0:00:04]}  Bxf3 {[%clk 0:00:15]} 26. gxf3 {[%clk 0:00:05]}  Bxg5 {[%clk 0:00:11]} 27. hxg5 {[%clk 0:00:05]}  Nf4 {[%clk 0:00:10]} 28. Qh4 {[%clk 0:00:00]}  Qxg5+ {[%clk 0:00:09]} 0-1


[Site "https://www.chess.com"]

[Event "Titled Tuesday Blitz August 22 Early 2023"]
[White "Colas, Joshua"]
[Black "KorolDimitriy75"]
[WhiteFideId "2044447"]
[WhiteElo "2571"]
[BlackElo "2402"]
[Result "1-0"]
[Round "4"]
[TimeControl "180+1"]
[Date "2023.08.22"]
[WhiteClock "0:01:59"]
[BlackClock "0:00:33"]
[Board "154"]

1. c4 {[%clk 0:03:00]}  c5 {[%clk 0:03:00]} 2. Nf3 {[%clk 0:03:01]}  g6 {[%clk 0:03:00]} 3. b3 {[%clk 0:03:01]}  Bg7 {[%clk 0:03:00]} 4. Nc3 {[%clk 0:03:02]}  Nc6 {[%clk 0:03:00]} 5. Bb2 {[%clk 0:03:03]}  d6 {[%clk 0:02:59]} 6. g3 {[%clk 0:03:03]}  e5 {[%clk 0:02:59]} 7. Bg2 {[%clk 0:03:04]}  Nge7 {[%clk 0:02:59]} 8. O-O {[%clk 0:03:04]}  O-O {[%clk 0:02:59]} 9. e3 {[%clk 0:03:04]}  f5 {[%clk 0:02:54]} 10. d4 {[%clk 0:03:03]}  e4 {[%clk 0:02:28]} 11. Ng5 {[%clk 0:02:57]}  h6 {[%clk 0:02:23]} 12. Nh3 {[%clk 0:02:56]}  cxd4 {[%clk 0:02:23]} 13. exd4 {[%clk 0:02:52]}  Nxd4 {[%clk 0:02:24]} 14. Nf4 {[%clk 0:02:50]}  Kh7 {[%clk 0:02:10]} 15. h4 {[%clk 0:02:37]}  Nec6 {[%clk 0:01:52]} 16. Rb1 {[%clk 0:02:32]}  Ne5 {[%clk 0:01:42]} 17. Kh1 {[%clk 0:02:32]}  Ndf3 {[%clk 0:01:30]} 18. Ncd5 {[%clk 0:02:23]}  Nxh4 {[%clk 0:01:14]} 19. gxh4 {[%clk 0:02:11]}  Qxh4+ {[%clk 0:01:15]} 20. Kg1 {[%clk 0:02:01]}  Qxf4 {[%clk 0:00:33]} 21. Nxf4 {[%clk 0:01:59]} 1-0


[Site "https://www.chess.com"]

[Event "Titled Tuesday Blitz August 22 Early 2023"]
[White "Mostbauer, Florian"]
[Black "Polaczek, Richard"]
[WhiteFideId "1626671"]
[BlackFideId "200026"]
[WhiteElo "2554"]
[BlackElo "2397"]
[Result "1-0"]
[Round "4"]
[TimeControl "180+1"]
[Date "2023.08.22"]
[WhiteClock "0:00:02"]
[BlackClock "0:00:00"]
[Board "158"]

1. d4 {[%clk 0:02:57]}  Nf6 {[%clk 0:02:59]} 2. Nf3 {[%clk 0:02:57]}  d5 {[%clk 0:02:58]} 3. Bf4 {[%clk 0:02:57]}  c5 {[%clk 0:02:56]} 4. e3 {[%clk 0:02:56]}  Nc6 {[%clk 0:02:56]} 5. dxc5 {[%clk 0:02:56]}  Qa5+ {[%clk 0:02:50]} 6. Nbd2 {[%clk 0:02:50]}  Qxc5 {[%clk 0:02:47]} 7. a3 {[%clk 0:02:50]}  e6 {[%clk 0:02:42]} 8. c4 {[%clk 0:02:47]}  Be7 {[%clk 0:02:36]} 9. b4 {[%clk 0:02:44]}  Qb6 {[%clk 0:02:35]} 10. c5 {[%clk 0:02:43]}  Qd8 {[%clk 0:02:34]} 11. Rc1 {[%clk 0:02:30]}  O-O {[%clk 0:02:33]} 12. Bd3 {[%clk 0:02:21]}  Re8 {[%clk 0:02:20]} 13. O-O {[%clk 0:02:19]}  Nh5 {[%clk 0:02:13]} 14. b5 {[%clk 0:02:08]}  Nxf4 {[%clk 0:02:07]} 15. exf4 {[%clk 0:02:09]}  Na5 {[%clk 0:02:03]} 16. Ne5 {[%clk 0:01:54]}  g6 {[%clk 0:01:51]} 17. Nb3 {[%clk 0:01:27]}  Nxb3 {[%clk 0:01:49]} 18. Qxb3 {[%clk 0:01:28]}  Qc7 {[%clk 0:01:41]} 19. c6 {[%clk 0:01:24]}  bxc6 {[%clk 0:01:36]} 20. Rxc6 {[%clk 0:01:16]}  Qa5 {[%clk 0:01:35]} 21. Rfc1 {[%clk 0:01:14]}  Qxa3 {[%clk 0:01:27]} 22. Qb1 {[%clk 0:01:05]}  Bd6 {[%clk 0:01:12]} 23. g3 {[%clk 0:00:57]}  Rb8 {[%clk 0:01:03]} 24. h4 {[%clk 0:00:48]}  Bxe5 {[%clk 0:01:01]} 25. fxe5 {[%clk 0:00:47]}  Qa4 {[%clk 0:00:52]} 26. h5 {[%clk 0:00:42]}  Qg4 {[%clk 0:00:51]} 27. hxg6 {[%clk 0:00:41]}  hxg6 {[%clk 0:00:50]} 28. Rc7 {[%clk 0:00:42]}  Kg7 {[%clk 0:00:46]} 29. Rxa7 {[%clk 0:00:38]}  Rh8 {[%clk 0:00:44]} 30. Rcc7 {[%clk 0:00:33]}  Bb7 {[%clk 0:00:36]} 31. Bf1 {[%clk 0:00:24]}  Qh5 {[%clk 0:00:21]} 32. Bg2 {[%clk 0:00:24]}  Qh2+ {[%clk 0:00:19]} 33. Kf1 {[%clk 0:00:24]}  d4 {[%clk 0:00:18]} 34. Raxb7 {[%clk 0:00:19]}  Rxb7 {[%clk 0:00:16]} 35. Rxb7 {[%clk 0:00:19]}  Qh1+ {[%clk 0:00:15]} 36. Bxh1 {[%clk 0:00:19]}  Rxh1+ {[%clk 0:00:15]} 37. Ke2 {[%clk 0:00:18]}  Rxb1 {[%clk 0:00:14]} 38. Kd3 {[%clk 0:00:15]}  Rb2 {[%clk 0:00:13]} 39. f4 {[%clk 0:00:14]}  Rb3+ {[%clk 0:00:12]} 40. Kxd4 {[%clk 0:00:14]}  Rxg3 {[%clk 0:00:12]} 41. Kc5 {[%clk 0:00:09]}  Rc3+ {[%clk 0:00:09]} 42. Kd6 {[%clk 0:00:08]}  Rd3+ {[%clk 0:00:04]} 43. Kc6 {[%clk 0:00:06]}  Rd4 {[%clk 0:00:04]} 44. b6 {[%clk 0:00:05]}  Rxf4 {[%clk 0:00:04]} 45. Rc7 {[%clk 0:00:04]}  Rc4+ {[%clk 0:00:00]} 46. Kb5 {[%clk 0:00:02]} 1-0


[Site "https://www.chess.com"]

[Event "Titled Tuesday Blitz August 22 Early 2023"]
[White "Wartiovaara, Oliver"]
[Black "Bogaudinov, Rushan"]
[WhiteFideId "513024"]
[BlackFideId "4129288"]
[WhiteElo "2553"]
[BlackElo "2397"]
[Result "0-1"]
[Round "4"]
[TimeControl "180+1"]
[Date "2023.08.22"]
[WhiteClock "0:01:05"]
[BlackClock "0:00:57"]
[Board "159"]

1. b3 {[%clk 0:03:00]}  a5 {[%clk 0:02:59]} 2. a4 {[%clk 0:02:52]}  d5 {[%clk 0:02:56]} 3. Bb2 {[%clk 0:02:51]}  Nf6 {[%clk 0:02:56]} 4. e3 {[%clk 0:02:49]}  g6 {[%clk 0:02:52]} 5. Nf3 {[%clk 0:02:48]}  Bg7 {[%clk 0:02:52]} 6. Be2 {[%clk 0:02:47]}  O-O {[%clk 0:02:52]} 7. O-O {[%clk 0:02:48]}  Nc6 {[%clk 0:02:45]} 8. d4 {[%clk 0:02:47]}  Bf5 {[%clk 0:02:38]} 9. Nc3 {[%clk 0:02:30]}  Nb4 {[%clk 0:02:36]} 10. Rc1 {[%clk 0:02:30]}  c6 {[%clk 0:02:21]} 11. Ne5 {[%clk 0:02:29]}  Nd7 {[%clk 0:02:21]} 12. Nd3 {[%clk 0:02:25]}  Bxd3 {[%clk 0:02:12]} 13. cxd3 {[%clk 0:02:22]}  e5 {[%clk 0:02:00]} 14. dxe5 {[%clk 0:02:21]}  Nxe5 {[%clk 0:02:00]} 15. d4 {[%clk 0:02:19]}  Nd7 {[%clk 0:01:58]} 16. Qd2 {[%clk 0:02:15]}  Re8 {[%clk 0:01:55]} 17. Ba3 {[%clk 0:02:15]}  Bf8 {[%clk 0:01:55]} 18. Bb2 {[%clk 0:01:50]}  f5 {[%clk 0:01:44]} 19. Rfe1 {[%clk 0:01:41]}  Nf6 {[%clk 0:01:42]} 20. Bf1 {[%clk 0:01:36]}  Bd6 {[%clk 0:01:41]} 21. f3 {[%clk 0:01:29]}  Nh5 {[%clk 0:01:20]} 22. Qf2 {[%clk 0:01:20]}  Qg5 {[%clk 0:01:14]} 23. g3 {[%clk 0:01:15]}  f4 {[%clk 0:01:02]} 24. exf4 {[%clk 0:01:10]}  Bxf4 {[%clk 0:00:59]} 25. Rxe8+ {[%clk 0:01:08]}  Rxe8 {[%clk 0:00:59]} 26. Re1 {[%clk 0:01:08]}  Be3 {[%clk 0:00:57]} 27. Rxe3 {[%clk 0:01:05]}  Qxe3 {[%clk 0:00:57]} 0-1


[Site "https://www.chess.com"]

[Event "Titled Tuesday Blitz August 22 Early 2023"]
[White "NigelDwarf"]
[Black "Prudnykova, Olga"]
[BlackFideId "14121093"]
[WhiteElo "2533"]
[BlackElo "2384"]
[Result "0-1"]
[Round "4"]
[TimeControl "180+1"]
[Date "2023.08.22"]
[WhiteClock "0:00:08"]
[BlackClock "0:00:53"]
[Board "164"]

1. Nf3 {[%clk 0:03:00]}  Nf6 {[%clk 0:02:59]} 2. c4 {[%clk 0:02:59]}  g6 {[%clk 0:03:00]} 3. Nc3 {[%clk 0:02:58]}  d5 {[%clk 0:03:00]} 4. cxd5 {[%clk 0:02:57]}  Nxd5 {[%clk 0:03:01]} 5. Qb3 {[%clk 0:02:50]}  Nb6 {[%clk 0:03:00]} 6. d4 {[%clk 0:02:49]}  Bg7 {[%clk 0:03:00]} 7. Bg5 {[%clk 0:02:47]}  O-O {[%clk 0:02:57]} 8. h4 {[%clk 0:02:46]}  Nc6 {[%clk 0:02:57]} 9. h5 {[%clk 0:02:40]}  Nxd4 {[%clk 0:02:49]} 10. Nxd4 {[%clk 0:02:38]}  Qxd4 {[%clk 0:02:49]} 11. hxg6 {[%clk 0:02:38]}  hxg6 {[%clk 0:02:48]} 12. Bxe7 {[%clk 0:02:27]}  Re8 {[%clk 0:02:48]} 13. Bg5 {[%clk 0:02:26]}  Qc4 {[%clk 0:02:39]} 14. Nb5 {[%clk 0:01:27]}  Re5 {[%clk 0:02:07]} 15. Qxc4 {[%clk 0:01:15]}  Nxc4 {[%clk 0:02:07]} 16. Nxc7 {[%clk 0:01:15]}  Rxg5 {[%clk 0:01:38]} 17. Nxa8 {[%clk 0:01:10]}  Bxb2 {[%clk 0:01:37]} 18. Rb1 {[%clk 0:01:05]}  Bf5 {[%clk 0:01:36]} 19. e4 {[%clk 0:00:59]}  Bxe4 {[%clk 0:01:36]} 20. Rd1 {[%clk 0:00:56]}  Bc3+ {[%clk 0:01:32]} 21. Ke2 {[%clk 0:00:55]}  Ba5 {[%clk 0:01:24]} 22. Rd4 {[%clk 0:00:41]}  Re5 {[%clk 0:01:07]} 23. Kd1 {[%clk 0:00:15]}  b5 {[%clk 0:01:06]} 24. Bxc4 {[%clk 0:00:14]}  bxc4 {[%clk 0:01:06]} 25. f4 {[%clk 0:00:07]}  Re8 {[%clk 0:01:03]} 26. Rxc4 {[%clk 0:00:03]}  Bxa8 {[%clk 0:01:02]} 27. Kc2 {[%clk 0:00:02]}  Bxg2 {[%clk 0:01:00]} 28. Rg1 {[%clk 0:00:02]}  Be4+ {[%clk 0:00:58]} 29. Kb3 {[%clk 0:00:02]}  Bd5 {[%clk 0:00:58]} 30. f5 {[%clk 0:00:03]}  Bxc4+ {[%clk 0:00:58]} 31. Kxc4 {[%clk 0:00:04]}  Kg7 {[%clk 0:00:56]} 32. fxg6 {[%clk 0:00:04]}  fxg6 {[%clk 0:00:57]} 33. Kb5 {[%clk 0:00:05]}  Bb6 {[%clk 0:00:57]} 34. a4 {[%clk 0:00:05]}  Bxg1 {[%clk 0:00:56]} 35. a5 {[%clk 0:00:06]}  Re5+ {[%clk 0:00:56]} 36. Kc6 {[%clk 0:00:05]}  Rxa5 {[%clk 0:00:55]} 37. Kd7 {[%clk 0:00:06]}  Bb6 {[%clk 0:00:54]} 38. Kc8 {[%clk 0:00:07]}  Rf5 {[%clk 0:00:53]} 39. Kd7 {[%clk 0:00:08]} 0-1


[Site "https://www.chess.com"]

[Event "Titled Tuesday Blitz August 22 Early 2023"]
[White "Slovineanu, Viacheslav"]
[Black "Boraso, Alessio"]
[WhiteFideId "13900510"]
[BlackFideId "848077"]
[WhiteElo "2379"]
[BlackElo "2514"]
[Result "0-1"]
[Round "4"]
[TimeControl "180+1"]
[Date "2023.08.22"]
[WhiteClock "0:00:00"]
[BlackClock "0:00:42"]
[Board "167"]

1. d4 {[%clk 0:03:00]}  c5 {[%clk 0:02:58]} 2. d5 {[%clk 0:03:00]}  Nf6 {[%clk 0:02:58]} 3. Nc3 {[%clk 0:03:00]}  d6 {[%clk 0:02:58]} 4. e4 {[%clk 0:02:59]}  g6 {[%clk 0:02:59]} 5. Nf3 {[%clk 0:02:58]}  Bg7 {[%clk 0:02:58]} 6. Bb5+ {[%clk 0:02:58]}  Bd7 {[%clk 0:02:55]} 7. a4 {[%clk 0:02:58]}  O-O {[%clk 0:02:55]} 8. h3 {[%clk 0:02:58]}  Na6 {[%clk 0:02:54]} 9. O-O {[%clk 0:02:58]}  Nc7 {[%clk 0:02:53]} 10. Qd3 {[%clk 0:02:49]}  a6 {[%clk 0:02:51]} 11. Bxd7 {[%clk 0:02:47]}  Qxd7 {[%clk 0:02:38]} 12. Bf4 {[%clk 0:02:26]}  b5 {[%clk 0:02:36]} 13. e5 {[%clk 0:01:56]}  Nh5 {[%clk 0:02:29]} 14. Bh2 {[%clk 0:01:56]}  b4 {[%clk 0:02:26]} 15. Ne4 {[%clk 0:01:56]}  dxe5 {[%clk 0:02:26]} 16. Rad1 {[%clk 0:01:09]}  Rfd8 {[%clk 0:02:15]} 17. Nxc5 {[%clk 0:01:05]}  Qxd5 {[%clk 0:02:13]} 18. Qe3 {[%clk 0:00:41]}  Qxd1 {[%clk 0:02:10]} 19. Rxd1 {[%clk 0:00:41]}  Rxd1+ {[%clk 0:02:11]} 20. Ne1 {[%clk 0:00:41]}  Rad8 {[%clk 0:02:03]} 21. Nd3 {[%clk 0:00:40]}  Ra1 {[%clk 0:01:57]} 22. b3 {[%clk 0:00:38]}  Nd5 {[%clk 0:01:53]} 23. Qc5 {[%clk 0:00:23]}  Ndf4 {[%clk 0:01:47]} 24. Bxf4 {[%clk 0:00:20]}  Nxf4 {[%clk 0:01:36]} 25. Qxb4 {[%clk 0:00:17]}  Nxd3 {[%clk 0:01:19]} 26. cxd3 {[%clk 0:00:17]}  e4 {[%clk 0:01:10]} 27. Kh2 {[%clk 0:00:16]}  exd3 {[%clk 0:01:07]} 28. Qxe7 {[%clk 0:00:16]}  Rd5 {[%clk 0:00:48]} 29. Nf3 {[%clk 0:00:00]}  d2 {[%clk 0:00:42]} 0-1


[Site "https://www.chess.com"]

[Event "Titled Tuesday Blitz August 22 Early 2023"]
[White "Rego, Pedro Filipe"]
[Black "FromTexas54"]
[WhiteFideId "1904310"]
[WhiteElo "2372"]
[BlackElo "2507"]
[Result "1-0"]
[Round "4"]
[TimeControl "180+1"]
[Date "2023.08.22"]
[WhiteClock "0:00:24"]
[BlackClock "0:00:03"]
[Board "170"]

1. c4 {[%clk 0:03:00]}  g6 {[%clk 0:02:55]} 2. Nc3 {[%clk 0:02:59]}  Bg7 {[%clk 0:02:47]} 3. d4 {[%clk 0:02:58]}  d6 {[%clk 0:02:46]} 4. e4 {[%clk 0:02:58]}  Nf6 {[%clk 0:02:46]} 5. Nf3 {[%clk 0:02:58]}  O-O {[%clk 0:02:43]} 6. Be2 {[%clk 0:02:58]}  e5 {[%clk 0:02:41]} 7. O-O {[%clk 0:02:58]}  Bg4 {[%clk 0:02:41]} 8. dxe5 {[%clk 0:02:29]}  Bxf3 {[%clk 0:02:20]} 9. Bxf3 {[%clk 0:02:11]}  dxe5 {[%clk 0:02:14]} 10. Bg5 {[%clk 0:02:10]}  c6 {[%clk 0:02:13]} 11. Qb3 {[%clk 0:02:05]}  Qc7 {[%clk 0:02:07]} 12. Rfd1 {[%clk 0:01:58]}  Na6 {[%clk 0:02:07]} 13. Be3 {[%clk 0:01:56]}  Nd7 {[%clk 0:01:59]} 14. Na4 {[%clk 0:01:55]}  Rfd8 {[%clk 0:01:55]} 15. c5 {[%clk 0:01:49]}  Bf8 {[%clk 0:01:47]} 16. Rac1 {[%clk 0:01:45]}  Qa5 {[%clk 0:01:18]} 17. Qxb7 {[%clk 0:01:07]}  Qxa4 {[%clk 0:01:18]} 18. b3 {[%clk 0:00:55]}  Qa3 {[%clk 0:00:59]} 19. Rxd7 {[%clk 0:00:46]}  Nxc5 {[%clk 0:00:28]} 20. Rxc5 {[%clk 0:00:38]}  Rxd7 {[%clk 0:00:20]} 21. Qxa8 {[%clk 0:00:39]}  Qxa2 {[%clk 0:00:14]} 22. h4 {[%clk 0:00:31]}  Qa1+ {[%clk 0:00:08]} 23. Kh2 {[%clk 0:00:30]}  Kg7 {[%clk 0:00:03]} 24. Bh6+ {[%clk 0:00:25]}  Kxh6 {[%clk 0:00:03]} 25. Qxf8# {[%clk 0:00:24]} 1-0


[Site "https://www.chess.com"]

[Event "Titled Tuesday Blitz August 22 Early 2023"]
[White "Warchol, Kamil"]
[Black "Kekic, Armin"]
[WhiteFideId "21858241"]
[BlackFideId "14401274"]
[WhiteElo "2505"]
[BlackElo "2371"]
[Result "1-0"]
[Round "4"]
[TimeControl "180+1"]
[Date "2023.08.22"]
[WhiteClock "0:00:15"]
[BlackClock "0:00:14"]
[Board "171"]

1. e4 {[%clk 0:03:00]}  c5 {[%clk 0:02:59]} 2. Nf3 {[%clk 0:03:00]}  d6 {[%clk 0:02:59]} 3. d4 {[%clk 0:03:00]}  cxd4 {[%clk 0:03:00]} 4. Nxd4 {[%clk 0:03:01]}  Nf6 {[%clk 0:03:01]} 5. Nc3 {[%clk 0:03:01]}  a6 {[%clk 0:03:01]} 6. Be3 {[%clk 0:03:01]}  e6 {[%clk 0:03:02]} 7. Qf3 {[%clk 0:03:00]}  Be7 {[%clk 0:03:02]} 8. O-O-O {[%clk 0:02:57]}  O-O {[%clk 0:03:01]} 9. g4 {[%clk 0:02:57]}  Qc7 {[%clk 0:03:01]} 10. g5 {[%clk 0:02:47]}  Nfd7 {[%clk 0:03:00]} 11. h4 {[%clk 0:02:47]}  Ne5 {[%clk 0:02:59]} 12. Qg2 {[%clk 0:02:45]}  b5 {[%clk 0:02:58]} 13. h5 {[%clk 0:02:39]}  Bb7 {[%clk 0:02:55]} 14. f4 {[%clk 0:02:20]}  Nc4 {[%clk 0:02:52]} 15. Bxc4 {[%clk 0:02:19]}  Qxc4 {[%clk 0:02:51]} 16. g6 {[%clk 0:02:19]}  b4 {[%clk 0:02:47]} 17. Nb1 {[%clk 0:02:11]}  Nd7 {[%clk 0:02:18]} 18. b3 {[%clk 0:01:53]}  Qc7 {[%clk 0:02:15]} 19. gxf7+ {[%clk 0:01:51]}  Kxf7 {[%clk 0:02:14]} 20. Qxg7+ {[%clk 0:01:17]}  Kxg7 {[%clk 0:00:50]} 21. Nxe6+ {[%clk 0:01:17]}  Kf7 {[%clk 0:00:49]} 22. Nxc7 {[%clk 0:01:17]}  Rac8 {[%clk 0:00:48]} 23. Nd5 {[%clk 0:01:18]}  Nf6 {[%clk 0:00:45]} 24. Nxf6 {[%clk 0:00:56]}  Bxf6 {[%clk 0:00:42]} 25. Rxd6 {[%clk 0:00:51]}  Bxe4 {[%clk 0:00:41]} 26. Rh2 {[%clk 0:00:51]}  Rfd8 {[%clk 0:00:35]} 27. Rxa6 {[%clk 0:00:42]}  Bf3 {[%clk 0:00:35]} 28. Nd2 {[%clk 0:00:35]}  Rd3 {[%clk 0:00:29]} 29. Ra7+ {[%clk 0:00:27]}  Kf8 {[%clk 0:00:20]} 30. Nxf3 {[%clk 0:00:21]}  Rxe3 {[%clk 0:00:20]} 31. Ne5 {[%clk 0:00:21]}  Bxe5 {[%clk 0:00:18]} 32. fxe5 {[%clk 0:00:20]}  Rxe5 {[%clk 0:00:19]} 33. Rxh7 {[%clk 0:00:20]}  Rc3 {[%clk 0:00:19]} 34. h6 {[%clk 0:00:19]}  Kg8 {[%clk 0:00:18]} 35. Rb7 {[%clk 0:00:19]}  Re1+ {[%clk 0:00:16]} 36. Kb2 {[%clk 0:00:15]}  Re8 {[%clk 0:00:15]} 37. Rxb4 {[%clk 0:00:14]}  Rg3 {[%clk 0:00:15]} 38. h7+ {[%clk 0:00:14]}  Kh8 {[%clk 0:00:15]} 39. a4 {[%clk 0:00:14]}  Rg7 {[%clk 0:00:15]} 40. a5 {[%clk 0:00:14]}  Ra8 {[%clk 0:00:15]} 41. Ra4 {[%clk 0:00:13]}  Rxh7 {[%clk 0:00:13]} 42. Rxh7+ {[%clk 0:00:13]}  Kxh7 {[%clk 0:00:14]} 43. a6 {[%clk 0:00:14]}  Kg7 {[%clk 0:00:14]} 44. b4 {[%clk 0:00:15]} 1-0


[Site "https://www.chess.com"]

[Event "Titled Tuesday Blitz August 22 Early 2023"]
[White "Czerw, Dawid"]
[Black "Konenkin, Dmitry"]
[WhiteFideId "1145746"]
[BlackFideId "4185781"]
[WhiteElo "2502"]
[BlackElo "2364"]
[Result "0-1"]
[Round "4"]
[TimeControl "180+1"]
[Date "2023.08.22"]
[WhiteClock "0:00:00"]
[BlackClock "0:00:02"]
[Board "173"]

1. e4 {[%clk 0:03:00]}  d6 {[%clk 0:02:59]} 2. Nc3 {[%clk 0:02:59]}  Nf6 {[%clk 0:03:00]} 3. d4 {[%clk 0:02:59]}  e5 {[%clk 0:02:59]} 4. Nf3 {[%clk 0:02:59]}  Nbd7 {[%clk 0:02:59]} 5. g4 {[%clk 0:02:56]}  Nxg4 {[%clk 0:02:57]} 6. Rg1 {[%clk 0:02:57]}  exd4 {[%clk 0:02:57]} 7. Nxd4 {[%clk 0:02:56]}  Nde5 {[%clk 0:02:57]} 8. Bf4 {[%clk 0:02:47]}  a6 {[%clk 0:02:43]} 9. f3 {[%clk 0:02:33]}  Nf6 {[%clk 0:02:42]} 10. Qd2 {[%clk 0:02:32]}  Bd7 {[%clk 0:02:40]} 11. O-O-O {[%clk 0:02:30]}  Qe7 {[%clk 0:02:40]} 12. Bg5 {[%clk 0:02:23]}  Be6 {[%clk 0:02:24]} 13. f4 {[%clk 0:02:16]}  Nc4 {[%clk 0:01:56]} 14. Bxc4 {[%clk 0:02:15]}  Bxc4 {[%clk 0:01:57]} 15. b3 {[%clk 0:02:16]}  Be6 {[%clk 0:01:37]} 16. f5 {[%clk 0:02:13]}  h6 {[%clk 0:01:25]} 17. Bxf6 {[%clk 0:02:08]}  gxf6 {[%clk 0:01:20]} 18. fxe6 {[%clk 0:02:06]}  fxe6 {[%clk 0:01:20]} 19. Qe2 {[%clk 0:01:58]}  h5 {[%clk 0:01:15]} 20. Qc4 {[%clk 0:01:54]}  Kd7 {[%clk 0:01:08]} 21. Rg6 {[%clk 0:01:44]}  Bh6+ {[%clk 0:01:05]} 22. Kb1 {[%clk 0:01:44]}  Rag8 {[%clk 0:01:03]} 23. Rdg1 {[%clk 0:01:41]}  Qf7 {[%clk 0:01:01]} 24. Nxe6 {[%clk 0:01:00]}  Rxg6 {[%clk 0:00:43]} 25. Qxc7+ {[%clk 0:00:37]}  Kxe6 {[%clk 0:00:35]} 26. Qc4+ {[%clk 0:00:37]}  Ke7 {[%clk 0:00:34]} 27. Nd5+ {[%clk 0:00:37]}  Kf8 {[%clk 0:00:32]} 28. Qc8+ {[%clk 0:00:26]}  Kg7 {[%clk 0:00:31]} 29. Rxg6+ {[%clk 0:00:27]}  Qxg6 {[%clk 0:00:26]} 30. Qxb7+ {[%clk 0:00:27]}  Qf7 {[%clk 0:00:25]} 31. Qxa6 {[%clk 0:00:26]}  Re8 {[%clk 0:00:22]} 32. Qxd6 {[%clk 0:00:22]}  Rxe4 {[%clk 0:00:19]} 33. Qg3+ {[%clk 0:00:22]}  Rg4 {[%clk 0:00:18]} 34. Qd3 {[%clk 0:00:22]}  Rg1+ {[%clk 0:00:18]} 35. Kb2 {[%clk 0:00:22]}  Bc1+ {[%clk 0:00:18]} 36. Kc3 {[%clk 0:00:23]}  Qg6 {[%clk 0:00:12]} 37. Qe2 {[%clk 0:00:18]}  Qf5 {[%clk 0:00:09]} 38. Qe7+ {[%clk 0:00:15]}  Kg6 {[%clk 0:00:06]} 39. Qe8+ {[%clk 0:00:14]}  Kh7 {[%clk 0:00:04]} 40. Qf7+ {[%clk 0:00:11]}  Kh6 {[%clk 0:00:05]} 41. Qf8+ {[%clk 0:00:07]}  Rg7 {[%clk 0:00:05]} 42. Nxf6 {[%clk 0:00:07]}  Qf3+ {[%clk 0:00:04]} 43. Kb4 {[%clk 0:00:06]}  Qf4+ {[%clk 0:00:02]} 44. c4 {[%clk 0:00:05]}  Qc7 {[%clk 0:00:01]} 45. Qh8+ {[%clk 0:00:03]}  Kg6 {[%clk 0:00:01]} 46. Nd5 {[%clk 0:00:02]}  Qd6+ {[%clk 0:00:01]} 47. Kc3 {[%clk 0:00:02]}  Qe5+ {[%clk 0:00:01]} 48. Kc2 {[%clk 0:00:03]}  Re7 {[%clk 0:00:01]} 49. Qg8+ {[%clk 0:00:03]}  Qg7 {[%clk 0:00:01]} 50. Qxg7+ {[%clk 0:00:04]}  Rxg7 {[%clk 0:00:01]} 51. Nf4+ {[%clk 0:00:00]}  Kf5 {[%clk 0:00:02]} 0-1


[Site "https://www.chess.com"]